fUSD/lending_fUSD_20240925
["ID","MTS","AMOUNT","RATE_DAILY","PERIOD"]
[339137957,1727263865868,-500.0,0.00012899,2]
[339137958,1727263865877,-500.0,0.00012899,2]
[339137959,1727263865887,-875.63,0.00012899,2]
[339137960,1727263865897,-500.0,0.00012899,2]
[339137961,1727263865908,-500.0,0.00012899,2]
[339137962,1727263865917,-500.0,0.00012899,2]
[339137963,1727263865927,-875.63,0.00012899,2]
[339137964,1727263865936,-444.72,0.00012899,2]
[339137965,1727263865946,-875.63,0.00012899,2]
[339137966,1727263865955,-875.63,0.00012899,2]
[339137967,1727263865965,-875.63,0.00012899,2]
[339137968,1727263865975,-875.63,0.00012899,2]
[339137969,1727263865987,-875.63,0.00012899,2]
[339137970,1727263865997,-875.63,0.00012899,2]
[339137971,1727263866007,-875.63,0.00012899,2]
[339137972,1727263866016,-875.63,0.00012899,2]
[339137973,1727263866027,-875.63,0.00012899,2]
[339137974,1727263866038,-875.63,0.00012899,2]
[339137975,1727263866048,-500.0,0.00012899,2]
[339137976,1727263866058,-875.63,0.00012899,2]
[339137977,1727263866068,-500.0,0.00012899,2]
[339137978,1727263866078,-875.63,0.00012899,2]
[339137979,1727263866088,-500.0,0.00012899,2]
[339137980,1727263866098,-875.63,0.00012899,2]
[339137981,1727263866108,-500.0,0.00012899,2]
[339137982,1727263866118,-875.63,0.00012899,2]
[339137983,1727263866128,-500.0,0.00012899,2]
[339137984,1727263866138,-875.63,0.00012899,2]
[339137985,1727263866148,-500.0,0.00012899,2]
[339137986,1727263866159,-875.63,0.00012899,2]
[339137987,1727263866168,-500.0,0.00012899,2]
[339137988,1727263866178,-875.63,0.00012899,2]
[339137989,1727263866189,-500.0,0.00012899,2]
[339137990,1727263866198,-648.19343209,0.00012899,2]
[339137991,1727263866557,-500.0,0.00012898,2]
[339137992,1727263866567,-227.43656791,0.00012899,2]
[339137993,1727263866577,-574.4687413,0.00012899,2]
[339137994,1727263866587,-875.63336531,0.00012899,2]
[339137995,1727263866597,-500.0,0.00012899,2]
[339137996,1727263866606,-500.0,0.00012899,2]
[339137997,1727263866616,-500.0,0.00012899,2]
[339137998,1727263866625,-500.0,0.00012899,2]
[339137999,1727263866635,-500.0,0.00012899,2]
[339138000,1727263866644,-500.0,0.00012899,2]
[339138001,1727263866656,-376.87,0.00012899,2]
[339138002,1727263866665,-763.61,0.00012899,2]
[339138003,1727263866675,-763.61,0.00012899,2]
[339138004,1727263866684,-763.61,0.00012899,2]
[339138005,1727263866694,-763.61,0.00012899,2]
[339138006,1727263866704,-763.61,0.00012899,2]
[339138007,1727263866714,-763.61,0.00012899,2]
[339138008,1727263866724,-763.61,0.00012899,2]
[339138009,1727263866735,-763.61,0.00012899,2]
[339138010,1727263866744,-763.61,0.00012899,2]
[339138011,1727263866753,-763.61,0.00012899,2]
[339138012,1727263866763,-763.61,0.00012899,2]
[339138013,1727263866772,-763.61,0.00012899,2]
[339138014,1727263866782,-763.61,0.00012899,2]
[339138015,1727263866791,-763.61,0.00012899,2]
[339138016,1727263866800,-687.37772151,0.00012899,2]
[339138017,1727263866815,-76.23227849,0.00012899,2]
[339138018,1727263866825,-763.61,0.00012899,2]
[339138019,1727263866835,-151.0,0.00012899,2]
[339138020,1727263866844,-763.61,0.00012899,2]
[339138021,1727263866854,-763.61,0.00012899,2]
[339138022,1727263866863,-763.61,0.00012899,2]
[339138023,1727263866872,-763.61,0.00012899,2]
[339138024,1727263866881,-763.64704235,0.00012899,2]
[339138025,1727263866891,-151.0,0.00012899,2]
[339138026,1727263866900,-500.0,0.00012899,2]
[339138027,1727263866910,-500.0,0.00012899,2]
[339138028,1727263866919,-615.54313732,0.00012899,2]
[339138029,1727263866928,-500.0,0.00012899,2]
[339138030,1727263866939,-544.95702587,0.00012899,2]
[339138031,1727263866952,-41.92297413,0.00012899,2]
[339138032,1727263866961,-151.0,0.00012899,2]
[339138033,1727263866971,-586.88,0.00012899,2]
[339138034,1727263866981,-583.22700526,0.00012899,2]
[339138035,1727263867000,-3.65299474,0.00012899,2]
[339138036,1727263867010,-347.67886112,0.00012899,2]
[339138037,1727263867033,-500.0,0.00012894,2]
[339138038,1727263867043,-239.20113888,0.00012899,2]
[339138039,1727263867053,-231.29397216,0.00012899,2]
[339138040,1727263867066,-355.58602784,0.00012899,2]
[339138041,1727263867076,-586.88,0.00012899,2]
[339138042,1727263867085,-586.88,0.00012899,2]
[339138043,1727263867096,-586.88,0.00012899,2]
[339138044,1727263867105,-586.88,0.00012899,2]
[339138045,1727263867115,-586.88,0.00012899,2]
[339138046,1727263867124,-586.88,0.00012899,2]
[339138047,1727263867134,-586.88,0.00012899,2]
[339138048,1727263867145,-586.88,0.00012899,2]
[339138049,1727263867156,-586.88,0.00012899,2]
[339138050,1727263867166,-586.88,0.00012899,2]
[339138051,1727263867175,-586.88,0.00012899,2]
[339138052,1727263867185,-500.0,0.00012899,2]
[339138053,1727263867195,-586.88,0.00012899,2]
[339138054,1727263867205,-500.0,0.00012899,2]
[339138055,1727263867214,-586.88,0.00012899,2]
[339138056,1727263867223,-500.0,0.00012899,2]
[339138057,1727263867233,-586.88,0.00012899,2]
[339138058,1727263867242,-586.88,0.00012899,2]
[339138059,1727263867252,-500.0,0.00012899,2]
[339138060,1727263867262,-586.94390516,0.00012899,2]
[339138061,1727263867271,-500.0,0.00012899,2]
[339138062,1727263867281,-500.0,0.00012899,2]
[339138063,1727263867291,-500.0,0.00012899,2]
[339138064,1727263867300,-500.0,0.00012899,2]
[339138065,1727263867310,-500.0,0.00012899,2]
[339138066,1727263867320,-306.55,0.00012899,2]
[339138067,1727263867329,-500.0,0.00012899,2]
[339138068,1727263867339,-500.0,0.00012899,2]
[339138069,1727263867348,-500.0,0.00012899,2]
[339138070,1727263867358,-500.0,0.00012899,2]
[339138071,1727263867367,-324.12544694,0.00012899,2]
[339138072,1727263867628,-1081.0,0.00012837,2]
[339138073,1727263867637,-500.0,0.00012894,2]
[339138074,1727263867647,-164.3519675,0.00012894,2]
[339138075,1727263867659,-500.0,0.00012895,2]
[339138076,1727263867676,-500.0,0.00012895,2]
[339138077,1727263867685,-500.0,0.00012896,2]
[339138078,1727263867694,-500.0,0.00012896,2]
[339138079,1727263867703,-500.0,0.00012897,2]
[339138080,1727263867713,-362.71610334,0.00012897,2]
[339138081,1727263867724,-137.28389666,0.00012897,2]
[339138082,1727263867734,-500.0,0.00012897,2]
[339138083,1727263867743,-500.0,0.00012897,2]
[339138084,1727263867752,-500.0,0.00012898,2]
[339138085,1727263867761,-500.0,0.00012898,2]
[339138086,1727263867770,-500.0,0.00012898,2]
[339138087,1727263867779,-500.0,0.00012898,2]
[339138088,1727263867789,-500.0,0.00012898,2]
[339138089,1727263867798,-500.0,0.00012898,2]
[339138090,1727263867808,-500.0,0.00012898,2]
[339138091,1727263867817,-500.0,0.00012898,2]
[339138092,1727263867826,-500.0,0.00012898,2]
[339138093,1727263867835,-500.0,0.00012898,2]
[339138094,1727263867845,-175.87455306,0.00012899,2]
[339138095,1727263867855,-500.0,0.00012899,2]
[339138096,1727263867864,-500.0,0.00012899,2]
[339138097,1727263867874,-500.0,0.00012899,2]
[339138098,1727263867883,-219.24,0.00012899,2]
[339138099,1727263867893,-500.0,0.00012899,2]
[339138100,1727263867904,-500.0,0.00012899,2]
[339138101,1727263867914,-500.0,0.00012899,2]
[339138102,1727263867923,-500.0,0.00012899,2]
[339138103,1727263867932,-500.0,0.00012899,2]
[339138104,1727263867941,-500.0,0.00012899,2]
[339138105,1727263867950,-500.0,0.00012899,2]
[339138106,1727263867960,-500.0,0.00012899,2]
[339138107,1727263867970,-500.0,0.00012899,2]
[339138108,1727263867979,-472.33,0.00012899,2]
[339138109,1727263867992,-983.19,0.00012899,2]
[339138110,1727263868002,-983.19,0.00012899,2]
[339138111,1727263868011,-983.19,0.00012899,2]
[339138112,1727263868021,-983.19,0.00012899,2]
[339138113,1727263868031,-500.0,0.00012899,2]
[339138114,1727263868040,-983.19,0.00012899,2]
[339138115,1727263868049,-500.0,0.00012899,2]
[339138116,1727263868058,-983.19,0.00012899,2]
[339138117,1727263868067,-500.0,0.00012899,2]
[339138118,1727263868076,-983.19,0.00012899,2]
[339138119,1727263868085,-500.0,0.00012899,2]
[339138120,1727263868094,-983.19,0.00012899,2]
[339138121,1727263868104,-500.0,0.00012899,2]
[339138122,1727263868113,-983.19,0.00012899,2]
[339138123,1727263868123,-983.19,0.00012899,2]
[339138124,1727263868135,-983.19,0.00012899,2]
[339138125,1727263868144,-983.19,0.00012899,2]
[339138126,1727263868156,-983.19,0.00012899,2]
[339138127,1727263868165,-983.19,0.00012899,2]
[339138128,1727263868174,-983.19,0.00012899,2]
[339138129,1727263868183,-983.19,0.00012899,2]
[339138130,1727263868192,-983.19,0.00012899,2]
[339138131,1727263868202,-983.19,0.00012899,2]
[339138132,1727263868211,-983.19,0.00012899,2]
[339138133,1727263868221,-711.45,0.00012899,2]
[339138134,1727263868231,-983.19,0.00012899,2]
[339138135,1727263868242,-711.45,0.00012899,2]
[339138136,1727263868252,-983.24722583,0.00012899,2]
[339138137,1727263868261,-711.45,0.00012899,2]
[339138138,1727263868270,-711.45,0.00012899,2]
[339138139,1727263868279,-711.45,0.00012899,2]
[339138140,1727263868289,-711.45,0.00012899,2]
[339138141,1727263868299,-513.3,0.00012899,2]
[339138142,1727263868308,-711.45,0.00012899,2]
[339138143,1727263868317,-513.3,0.00012899,2]
[339138144,1727263868327,-711.45,0.00012899,2]
[339138145,1727263868338,-513.3,0.00012899,2]
[339138146,1727263868348,-711.45,0.00012899,2]
[339138147,1727263868358,-513.3,0.00012899,2]
[339138148,1727263868368,-711.45,0.00012899,2]
[339138149,1727263868378,-513.3,0.00012899,2]
[339138150,1727263868387,-500.0,0.00012899,2]
[339138151,1727263868398,-711.45,0.00012899,2]
[339138152,1727263868409,-513.3,0.00012899,2]
[339138153,1727263868418,-500.0,0.00012899,2]
[339138154,1727263868427,-500.0,0.00012899,2]
[339138155,1727263868436,-513.3,0.00012899,2]
[339138156,1727263868445,-500.0,0.00012899,2]
[339138157,1727263868455,-513.3,0.00012899,2]
[339138158,1727263868465,-711.45,0.00012899,2]
[339138159,1727263868474,-500.0,0.00012899,2]
[339138160,1727263868484,-513.3,0.00012899,2]
[339138161,1727263868494,-500.0,0.00012899,2]
[339138162,1727263868504,-500.0,0.00012899,2]
[339138163,1727263868513,-513.3,0.00012899,2]
[339138164,1727263868523,-711.45,0.00012899,2]
[339138165,1727263868532,-513.3,0.00012899,2]
[339138166,1727263868542,-500.0,0.00012899,2]
[339138167,1727263868552,-711.45,0.00012899,2]
[339138168,1727263868561,-513.3,0.00012899,2]
[339138169,1727263868571,-711.45,0.00012899,2]
[339138170,1727263868581,-513.3,0.00012899,2]
[339138171,1727263868592,-711.45,0.00012899,2]
[339138172,1727263868602,-317.6,0.00012899,2]
[339138173,1727263868612,-513.3,0.00012899,2]
[339138174,1727263868622,-711.45,0.00012899,2]
[339138175,1727263868632,-513.3,0.00012899,2]
[339138176,1727263868642,-711.45,0.00012899,2]
[339138177,1727263868652,-513.3,0.00012899,2]
[339138178,1727263868662,-711.45,0.00012899,2]
[339138179,1727263868672,-513.3,0.00012899,2]
[339138180,1727263868681,-513.53,0.00012899,2]
[339138181,1727263868691,-711.45,0.00012899,2]
[339138182,1727263868700,-711.49813851,0.00012899,2]
[339138183,1727263868709,-500.0,0.00012899,2]
[339138184,1727263868719,-500.0,0.00012899,2]
[339138185,1727263868727,-500.0,0.00012899,2]
[339138186,1727263868737,-500.0,0.00012899,2]
[339138187,1727263868746,-500.0,0.00012899,2]
[339138188,1727263868755,-500.0,0.00012899,2]
[339138189,1727263868764,-500.0,0.00012899,2]
[339138190,1727263868773,-500.0,0.00012899,2]
[339138191,1727263868785,-500.0,0.00012899,2]
[339138192,1727263868794,-447.33062334,0.00012899,2]
[339138193,1727263869149,-156.84422594,0.00012797,2]
[339138194,1727263869160,-558.0,0.00012818,2]
[339138195,1727263869169,-933.0,0.00012818,2]
[339138196,1727263869178,-150.0,0.00012837,2]
[339138197,1727263869188,-810.0,0.00012837,2]
[339138198,1727263869197,-52.66937666,0.00012899,2]
[339138199,1727263869206,-500.0,0.00012899,2]
[339138200,1727263869216,-500.0,0.00012899,2]
[339138201,1727263869226,-500.0,0.00012899,2]
[339138202,1727263869235,-500.0,0.00012899,2]
[339138203,1727263869245,-500.0,0.00012899,2]
[339138204,1727263869254,-500.0,0.00012899,2]
[339138205,1727263869264,-500.0,0.00012899,2]
[339138206,1727263869273,-500.0,0.00012899,2]
[339138207,1727263869283,-500.0,0.00012899,2]
[339138208,1727263869291,-310.17946339,0.00012899,2]
[339138209,1727263869302,-500.0,0.00012899,2]
[339138210,1727263869311,-500.0,0.00012899,2]
[339138211,1727263869321,-500.0,0.00012899,2]
[339138212,1727263869330,-500.0,0.00012899,2]
[339138213,1727263869340,-500.0,0.00012899,2]
[339138214,1727263869350,-500.0,0.00012899,2]
[339138215,1727263869361,-500.0,0.00012899,2]
[339138216,1727263869371,-500.0,0.00012899,2]
[339138217,1727263869381,-151.0,0.00012899,2]
[339138218,1727263869390,-504.00902008,0.00012899,2]
[339138219,1727263869400,-500.0,0.00012899,2]
[339138220,1727263869411,-500.0,0.00012899,2]
[339138221,1727263869420,-500.0,0.00012899,2]
[339138222,1727263869430,-500.0,0.00012899,2]
[339138223,1727263869439,-500.0,0.00012899,2]
[339138224,1727263869448,-500.0,0.00012899,2]
[339138225,1727263869459,-500.0,0.00012899,2]
[339138226,1727263869470,-722.53,0.00012899,2]
[339138227,1727263869480,-722.53,0.00012899,2]
[339138228,1727263869490,-722.53,0.00012899,2]
[339138229,1727263869500,-722.53,0.00012899,2]
[339138230,1727263869510,-722.53,0.00012899,2]
[339138231,1727263869520,-722.53,0.00012899,2]
[339138232,1727263869530,-500.0,0.00012899,2]
[339138233,1727263869540,-722.53,0.00012899,2]
[339138234,1727263869549,-500.0,0.00012899,2]
[339138235,1727263869559,-722.53,0.00012899,2]
[339138236,1727263869568,-500.0,0.00012899,2]
[339138237,1727263869578,-722.53,0.00012899,2]
[339138238,1727263869587,-500.0,0.00012899,2]
[339138239,1727263869597,-722.53,0.00012899,2]
[339138240,1727263869606,-500.0,0.00012899,2]
[339138241,1727263869616,-311.05,0.00012899,2]
[339138242,1727263869625,-722.53,0.00012899,2]
[339138243,1727263869634,-722.53,0.00012899,2]
[339138244,1727263869644,-722.53,0.00012899,2]
[339138245,1727263869655,-722.53,0.00012899,2]
[339138246,1727263869666,-722.53,0.00012899,2]
[339138247,1727263869676,-722.53,0.00012899,2]
[339138248,1727263869686,-722.53,0.00012899,2]
[339138249,1727263869696,-722.7,0.00012899,2]
[339138250,1727263869705,-500.0,0.00012899,2]
[339138251,1727263869714,-500.0,0.00012899,2]
[339138252,1727263869724,-500.0,0.00012899,2]
[339138253,1727263869733,-500.0,0.00012899,2]
[339138254,1727263869743,-500.0,0.00012899,2]
[339138255,1727263869752,-500.0,0.00012899,2]
[339138256,1727263869761,-500.0,0.00012899,2]
[339138257,1727263869770,-500.0,0.00012899,2]
[339138258,1727263869779,-500.0,0.00012899,2]
[339138259,1727263869789,-151.0,0.00012899,2]
[339138260,1727263869798,-500.0,0.00012899,2]
[339138261,1727263869807,-500.0,0.00012899,2]
[339138262,1727263869816,-394.13,0.00012899,2]
[339138263,1727263869826,-627.2,0.00012899,2]
[339138264,1727263869835,-221.57446053,0.00012899,2]
[339138265,1727263894365,1800.0,8.22e-05,2]
[339138266,1727263895682,2200.0,8.22e-05,2]
[339138267,1727263895942,1800.0,9.59e-05,2]
[339138268,1727263897479,2200.0,9.59e-05,2]
[339138269,1727263897515,1800.0,0.0001096,2]
[339138270,1727263899086,2200.0,0.0001096,2]
[339138271,1727263938832,1050.0,0.00011,2]
[339138272,1727263947325,191.18,0.00010008,2]
[339138273,1727263997436,200.0,0.00020798,120]
[339138274,1727264143598,1700.0,8.22e-05,2]
[339138275,1727264143782,1300.0,8.22e-05,2]
[339138276,1727264145169,1700.0,9.59e-05,2]
[339138277,1727264145397,1300.0,9.59e-05,2]
[339138278,1727264146753,1700.0,0.0001096,2]
[339138279,1727264147028,1300.0,0.0001096,2]
[339138280,1727264148404,500.0,8.22e-05,2]
[339138281,1727264150376,500.0,0.0001096,2]
[339138282,1727264401871,7215.42264392,0.00011,2]
[339138283,1727264415308,159.55,0.00010959,2]
[339138286,1727264514915,194.47,9.981e-05,2]
[339138296,1727264909033,1052.3126,0.00022,120]
[339138306,1727265032243,-150.0,0.00011589,2]
[339138307,1727265032253,-150.0,0.00011589,2]
[339138308,1727265032263,-150.0,0.00011589,2]
[339138309,1727265032274,-292.38079082,0.00011589,2]
[339138310,1727265032284,-199.09,0.00011869,2]
[339138311,1727265032294,-267.86,0.00011871,2]
[339138312,1727265032304,-250.0,0.00011894,2]
[339138313,1727265032314,-299.63,0.00011899,2]
[339138314,1727265032324,-1000.0,0.00011922,2]
[339138315,1727265032335,-194.47,0.00012245,2]
[339138316,1727265032345,-1700.0,0.0001233,2]
[339138317,1727265032355,-1300.0,0.0001233,2]
[339138318,1727265032365,-156.84422594,0.000126,2]
[339138319,1727265032375,-2500.0,0.000126,2]
[339138320,1727265032385,-502.09100106,0.00012673,2]
[339138321,1727265032394,-154.03,0.0001269,2]
[339138322,1727265032404,-500.0,0.00012699,2]
[339138323,1727265032414,-500.0,0.00012699,2]
[339138324,1727265032424,-255.23643068,0.00012699,2]
[339138325,1727265032434,-500.0,0.00012699,2]
[339138326,1727265032443,-20965.93715151,0.000127,2]
[339138327,1727265032456,-1599.66431775,0.000127,2]
[339138328,1727265032474,-274.8051,0.000127,2]
[339138329,1727265032510,-242728.79999999,0.000127,2]
[339138332,1727265038570,-1253.04,0.000127,2]
[339138333,1727265038723,-1044856.05343075,0.000127,2]
[339138334,1727265038733,-357.12,0.000127,2]
[339138335,1727265038743,-1186.6985,0.00012793,2]
[339138336,1727265038754,-500.0,0.00012796,2]
[339138337,1727265038765,-333.42672384,0.00012797,2]
[339138338,1727265038776,-170.9928382,0.00012798,2]
[339138339,1727265038785,-333.42672382,0.00012799,2]
[339138340,1727265038795,-150.0,0.000128,2]
[339138341,1727265038805,-308.43,0.000128,2]
[339138342,1727265038815,-428.36,0.000128,2]
[339138343,1727265038825,-150.0,0.000128,2]
[339138345,1727265038835,-150.0,0.000128,2]
[339138347,1727265038845,-422.86,0.000128,2]
[339138372,1727265039139,-753.72,0.000128,2]
[339138374,1727265039151,-358.17,0.000128,2]
[339138376,1727265039161,-312.24,0.000128,2]
[339138378,1727265039171,-1013.58,0.000128,2]
[339138380,1727265039180,-358.17,0.000128,2]
[339138381,1727265039190,-152.37723671,0.000128,2]
[339138383,1727265039200,-152.37723671,0.000128,2]
[339138385,1727265039209,-152.37723671,0.000128,2]
[339138387,1727265039219,-152.37723671,0.000128,2]
[339138389,1727265039228,-152.37723671,0.000128,2]
[339138390,1727265039237,-152.37723671,0.000128,2]
[339138392,1727265039246,-152.37723671,0.000128,2]
[339138394,1727265039255,-152.37723671,0.000128,2]
[339138396,1727265039265,-152.37723671,0.000128,2]
[339138397,1727265039273,-152.37723671,0.000128,2]
[339138399,1727265039283,-152.37723671,0.000128,2]
[339138401,1727265039291,-152.37723671,0.000128,2]
[339138403,1727265039301,-152.37723671,0.000128,2]
[339138405,1727265039311,-152.37723671,0.000128,2]
[339138406,1727265039320,-152.37723671,0.000128,2]
[339138408,1727265039330,-152.87,0.000128,2]
[339138410,1727265039339,-173.28969799,0.000128,2]
[339138411,1727265039349,-173.28969799,0.000128,2]
[339138413,1727265039359,-173.28969799,0.000128,2]
[339138415,1727265039368,-173.78,0.000128,2]
[339138417,1727265039377,-153.67886749,0.000128,2]
[339138418,1727265039387,-153.67886749,0.000128,2]
[339138420,1727265039396,-153.67886749,0.000128,2]
[339138422,1727265039405,-153.67886749,0.000128,2]
[339138424,1727265039418,-153.67886749,0.000128,2]
[339138426,1727265039427,-154.17,0.000128,2]
[339138428,1727265039437,-333.42672382,0.000128,2]
[339138429,1727265039447,-976.758,0.00012837,2]
[339138431,1727265039456,-1261.0,0.00012837,2]
[339138433,1727265039465,-625.0,0.00012837,2]
[339138435,1727265039474,-442.649,0.00012837,2]
[339138437,1727265039483,-933.0,0.00012837,2]
[339138439,1727265039493,-553.0,0.00012837,2]
[339138440,1727265039502,-1903.0,0.00012837,2]
[339138442,1727265039511,-1333.987,0.00012837,2]
[339138444,1727265039521,-3347.0,0.00012837,2]
[339138446,1727265039531,-806.0,0.00012837,2]
[339138448,1727265039541,-13484.0,0.00012837,2]
[339138450,1727265039551,-150.0,0.00012837,2]
[339138451,1727265039560,-150.0,0.00012837,2]
[339138453,1727265039570,-150.0,0.00012837,2]
[339138455,1727265039579,-500.0,0.00012873,2]
[339138457,1727265039589,-500.0,0.00012873,2]
[339138458,1727265039598,-500.0,0.00012873,2]
[339138460,1727265039608,-500.0,0.00012876,2]
[339138462,1727265039618,-500.0,0.00012876,2]
[339138464,1727265039627,-500.0,0.00012876,2]
[339138465,1727265039637,-500.0,0.00012876,2]
[339138467,1727265039646,-500.0,0.00012876,2]
[339138469,1727265039655,-261.22,0.00012876,2]
[339138471,1727265039665,-500.0,0.00012876,2]
[339138473,1727265039678,-500.0,0.00012876,2]
[339138475,1727265039687,-500.0,0.00012876,2]
[339138476,1727265039697,-500.0,0.00012876,2]
[339138478,1727265039706,-500.0,0.00012876,2]
[339138480,1727265039716,-1550.69,0.00012876,2]
[339138482,1727265039725,-1550.69,0.00012876,2]
[339138484,1727265039735,-1550.69,0.00012876,2]
[339138486,1727265039745,-1550.69,0.00012876,2]
[339138488,1727265039755,-1550.69,0.00012876,2]
[339138489,1727265039764,-500.0,0.00012876,2]
[339138491,1727265039774,-500.0,0.00012876,2]
[339138493,1727265039784,-500.0,0.00012876,2]
[339138495,1727265039794,-500.0,0.00012876,2]
[339138497,1727265039804,-500.0,0.00012876,2]
[339138499,1727265039813,-849.05,0.00012876,2]
[339138500,1727265039823,-849.05,0.00012876,2]
[339138502,1727265039832,-849.05,0.00012876,2]
[339138504,1727265039843,-849.05,0.00012876,2]
[339138506,1727265039854,-849.05,0.00012876,2]
[339138508,1727265039864,-2126.2,0.00012876,2]
[339138510,1727265039873,-2126.2,0.00012876,2]
[339138512,1727265039883,-2126.2,0.00012876,2]
[339138514,1727265039892,-2126.2,0.00012876,2]
[339138515,1727265039902,-2126.2,0.00012876,2]
[339138517,1727265039912,-835.15,0.00012876,2]
[339138519,1727265039922,-835.15,0.00012876,2]
[339138521,1727265039932,-835.15,0.00012876,2]
[339138523,1727265039942,-1436.66,0.00012876,2]
[339138526,1727265039964,-1436.66,0.00012876,2]
[339138528,1727265039978,-1436.66,0.00012876,2]
[339138530,1727265039989,-835.15,0.00012876,2]
[339138532,1727265039999,-1436.66,0.00012876,2]
[339138534,1727265040009,-1436.66,0.00012876,2]
[339138536,1727265040019,-835.15,0.00012876,2]
[339138538,1727265040038,-500.0,0.00012876,2]
[339138540,1727265040048,-500.0,0.00012876,2]
[339138541,1727265040059,-500.0,0.00012876,2]
[339138543,1727265040069,-500.0,0.00012876,2]
[339138545,1727265040081,-500.0,0.00012876,2]
[339138548,1727265040091,-500.0,0.00012876,2]
[339138550,1727265040101,-500.0,0.00012876,2]
[339138552,1727265040111,-500.0,0.00012876,2]
[339138554,1727265040121,-500.0,0.00012876,2]
[339138556,1727265040130,-500.0,0.00012876,2]
[339138558,1727265040140,-500.0,0.00012876,2]
[339138560,1727265040150,-500.0,0.00012876,2]
[339138561,1727265040160,-500.0,0.00012876,2]
[339138563,1727265040170,-500.0,0.00012876,2]
[339138565,1727265040179,-500.0,0.00012876,2]
[339138567,1727265040190,-500.0,0.00012876,2]
[339138569,1727265040200,-500.0,0.00012876,2]
[339138571,1727265040210,-500.0,0.00012876,2]
[339138573,1727265040220,-264.04,0.00012876,2]
[339138574,1727265040230,-500.0,0.00012876,2]
[339138576,1727265040240,-500.0,0.00012876,2]
[339138578,1727265040250,-500.0,0.00012876,2]
[339138580,1727265040261,-500.0,0.00012876,2]
[339138582,1727265040270,-289.28600702,0.00012876,2]
[339138584,1727265040282,-500.0,0.00012876,2]
[339138586,1727265040291,-500.0,0.00012876,2]
[339138588,1727265040301,-500.0,0.00012876,2]
[339138590,1727265040311,-247.34,0.00012876,2]
[339138591,1727265040320,-15035.8,0.00012886,2]
[339138593,1727265040330,-500.0,0.00012892,2]
[339138595,1727265040340,-500.0,0.00012892,2]
[339138597,1727265040351,-173.08,0.00012892,2]
[339138599,1727265040361,-500.0,0.00012892,2]
[339138601,1727265040371,-510.47860488,0.00012892,2]
[339138603,1727265040381,-500.0,0.00012892,2]
[339138605,1727265040390,-589.07,0.00012892,2]
[339138607,1727265040405,-500.0,0.00012892,2]
[339138609,1727265040415,-500.0,0.00012892,2]
[339138611,1727265040425,-500.0,0.00012892,2]
[339138613,1727265040435,-500.0,0.00012892,2]
[339138615,1727265040446,-500.0,0.00012892,2]
[339138617,1727265040456,-500.0,0.00012892,2]
[339138618,1727265040466,-500.0,0.00012892,2]